bitfinex/quotes_SOLUSD_20250216
["timestamp","ask_amount","ask_price","bid_price","bid_amount"]
[1739675840306,0.03,193.47,193.44,0.063]
[1739675840633,5.1988,193.47,193.44,0.063]
[1739675841411,0.03,193.47,193.44,0.063]
[1739675843412,0.03,193.47,193.45,10.22967412]
[1739675845139,0.03,193.47,193.44,10.29267412]
[1739675846335,0.03,193.47,193.45,10.22967412]
[1739675846714,0.03,193.47,193.44,10.29267412]
[1739675846919,0.03,193.47,193.44,0.063]
[1739675847525,0.03,193.47,193.44,10.29267412]
[1739675849040,0.03,193.47,193.45,10.22967412]
[1739675849941,0.03,193.47,193.44,10.29267412]
[1739675850129,0.03,193.47,193.44,0.063]
[1739675851731,0.03,193.47,193.45,10.22967412]
[1739675851921,0.03,193.47,193.44,10.29267412]
[1739675854421,0.03,193.47,193.44,0.063]
[1739675855123,10.25967412,193.47,193.44,0.063]
[1739675855728,92.32967412,193.46,193.44,0.063]
[1739675855945,82.1,193.46,193.44,0.063]
[1739675857529,82.1,193.46,193.44,10.29267412]
[1739675860958,0.03,193.47,193.44,10.29267412]
[1739675861529,0.03,193.47,193.44,0.063]
[1739675862465,10.25967412,193.47,193.44,0.063]
[1739675862751,10.22967412,193.45,193.44,0.063]
[1739675863141,15.39887412,193.45,193.44,0.063]
[1739675877565,5.1692,193.45,193.44,0.063]
[1739675877944,15.39887412,193.45,193.44,0.063]
[1739675880155,5.1692,193.45,193.44,0.063]
[1739675880566,15.39887412,193.45,193.44,0.063]
[1739675880782,5.1692,193.45,193.44,0.063]
[1739675882577,5.169,193.46,193.44,0.063]
[1739675882782,87.2988,193.47,193.44,10.29267412]
[1739675883075,82.13,193.47,193.44,10.29267412]
[1739675884475,82.13,193.47,193.45,10.22967412]
[1739675886653,82.13,193.47,193.44,10.29267412]
[1739675887380,82.13,193.47,193.45,10.22967412]
[1739675887980,0.03,193.47,193.46,10.22967412]
[1739675892260,0.03,193.47,193.46,15.39867412]
[1739675894170,0.03,193.47,193.46,10.22967412]
[1739675895389,0.03,193.47,193.46,15.39867412]
[1739675901897,0.03,193.47,193.46,10.22967412]
[1739675903571,0.03,193.47,193.45,10.22967412]
[1739675904508,10.25967412,193.47,193.44,0.063]
[1739675904703,10.22967412,193.45,193.44,0.063]
[1739675905215,92.35967412,193.47,193.44,0.063]
[1739675905692,5.169,193.46,193.44,0.063]
[1739675906501,15.39867412,193.46,193.44,0.063]
[1739675908913,10.22967412,193.45,193.44,0.063]
[1739675909078,5.169,193.46,193.44,0.063]
[1739675909389,10.22967412,193.45,193.44,0.063]
[1739675911004,15.39887412,193.45,193.44,0.063]
[1739675925407,15.42887412,193.45,193.44,0.063]
[1739675925706,5.1992,193.45,193.44,0.063]
[1739675926600,20.03,193.45,193.44,0.063]
[1739675926806,0.03,193.45,193.44,0.063]
[1739675947453,10.25967412,193.45,193.44,0.063]
[1739675948248,15.42887412,193.45,193.44,0.063]
[1739675948760,20.0,193.42,193.41,0.063]
[1739675949052,30.22967412,193.42,193.41,0.063]
[1739675950660,35.39967412,193.42,193.41,0.063]
[1739675951236,25.17,193.42,193.41,0.063]
[1739675952555,10.22967412,193.44,193.41,0.063]
[1739675952753,5.1698,193.43,193.41,0.063]
[1739675957160,10.25967412,193.45,193.41,0.063]
[1739675957361,5.1695,193.44,193.41,0.063]
[1739675959056,15.39917412,193.44,193.41,0.063]
[1739675959265,82.1,193.43,193.41,0.063]
[1739675959581,10.22967412,193.42,193.41,0.063]
[1739675960862,15.39967412,193.42,193.41,0.063]
[1739675966864,20.0,193.4,193.39,0.063]
[1739675967079,30.22967412,193.4,193.39,0.063]
[1739675967864,35.40027412,193.4,193.39,0.063]
[1739675973570,25.1706,193.4,193.39,0.063]
[1739675973961,35.40027412,193.4,193.39,0.063]
[1739675975176,25.1706,193.4,193.39,0.063]
[1739675975366,20.0,193.4,193.39,0.063]
[1739675975554,25.1706,193.4,193.39,0.063]
[1739675976568,10.22967412,193.42,193.39,0.063]
[1739675976769,5.1703,193.41,193.39,0.063]
[1739675982179,10.22967412,193.4,193.39,0.063]
[1739675982762,15.34817412,193.41,193.39,0.063]
[1739675986090,15.37817412,193.41,193.39,0.063]
[1739675990361,5.1485,193.41,193.39,0.063]
[1739675993988,15.37817412,193.41,193.39,0.063]
[1739675995194,5.1485,193.41,193.39,0.063]
[1739675999300,10.25967412,193.41,193.39,0.063]
[1739676001693,0.03,193.41,193.39,0.063]
[1739676001895,5.2003,193.41,193.39,0.063]
[1739676003991,0.03,193.41,193.39,0.063]
[1739676009377,20.0,193.4,193.39,0.063]
[1739676011099,25.1706,193.4,193.39,0.063]
[1739676024905,35.40027412,193.4,193.39,0.063]
[1739676035519,25.1706,193.4,193.39,0.063]
[1739676039624,35.40027412,193.4,193.39,0.063]
[1739676047732,25.1706,193.4,193.39,0.063]
[1739676056534,35.40027412,193.4,193.39,0.0001]
[1739676058825,48.32677412,193.4,193.29,10.22967412]
[1739676059131,30.22967412,193.36,193.29,10.22967412]
[1739676059338,10.22967412,193.34,193.28,1.5629]
[1739676060125,92.32967412,193.35,193.28,11.79257412]
[1739676060328,15.40187412,193.34,193.28,11.79257412]
[1739676060523,15.40187412,193.34,193.28,1.5629]
[1739676061727,15.40187412,193.34,193.28,11.79257412]
[1739676062537,5.1722,193.34,193.29,10.22967412]
[1739676062740,5.1722,193.34,193.3,10.22967412]
[1739676063241,82.1,193.33,193.3,10.22967412]
[1739676063539,82.1,193.33,193.31,10.22967412]
[1739676063744,25.1719,193.36,193.28,6.7367]
[1739676063745,82.1,193.35,193.32,10.22967412]
[1739676063949,82.1,193.35,193.33,10.22967412]
[1739676065344,82.1,193.35,193.29,5.1733]
[1739676065549,82.1,193.35,193.33,10.22967412]
[1739676065936,87.272,193.35,193.32,10.22967412]
[1739676066232,82.1,193.35,193.31,10.22967412]
[1739676067936,87.272,193.35,193.31,10.22967412]
[1739676068540,87.272,193.35,193.3,10.22967412]
[1739676073666,87.272,193.35,193.29,10.29267412]
[1739676073955,82.1,193.34,193.29,10.29267412]
[1739676075357,92.32967412,193.34,193.29,0.063]
[1739676075842,5.1725,193.33,193.29,0.063]
[1739676076856,15.40217412,193.33,193.29,0.063]
[1739676077062,92.32967412,193.32,193.29,0.063]
[1739676078554,10.22967412,193.31,193.29,0.063]
[1739676078755,92.32967412,193.3,193.29,0.063]
[1739676078942,97.50297412,193.3,193.29,0.063]
[1739676080963,97.50297412,193.3,193.24,9.85567412]
[1739676081131,82.1,193.29,193.24,9.85567412]
[1739676081735,87.2735,193.29,193.24,9.85567412]
[1739676082957,97.50317412,193.29,193.23,15.40477412]
[1739676083157,87.2735,193.29,193.24,10.22967412]
[1739676083831,82.1,193.29,193.24,10.22967412]
[1739676084040,82.1,193.29,193.25,10.22967412]
[1739676086160,87.2735,193.29,193.25,10.22967412]
[1739676086961,97.50317412,193.29,193.23,10.22967412]
[1739676088458,97.50317412,193.29,193.22,16.66247412]
[1739676088659,10.22967412,193.27,193.22,10.22967412]
[1739676089155,10.22967412,193.27,193.21,0.063]
[1739676089156,82.1,193.26,193.21,10.29267412]
[1739676089342,92.32967412,193.25,193.21,0.063]
[1739676091041,92.32967412,193.25,193.21,0.063]
[1739676091759,82.1,193.24,193.21,0.063]
[1739676093151,82.1,193.24,193.21,10.29267412]
[1739676093552,82.1,193.24,193.21,0.063]
[1739676093956,82.1,193.24,193.2,9.2926641]
[1739676094642,82.1,193.24,193.21,10.22967412]
[1739676094966,82.1,193.24,193.2,10.22967412]
[1739676095954,82.1,193.23,193.2,10.22967412]
[1739676097264,82.1,193.23,193.2,15.40557412]
[1739676098261,82.1,193.23,193.22,10.22967412]
[1739676099462,10.22967412,193.23,193.19,0.063]
[1739676100150,21.5452,193.24,193.19,0.063]
[1739676100151,31.77487412,193.24,193.19,0.063]
[1739676100344,21.5452,193.24,193.19,10.29267412]
[1739676100545,1.5452,193.24,193.19,10.29267412]
[1739676100971,1.5452,193.24,193.19,15.46877412]
[1739676101652,1.5452,193.24,193.2,10.22967412]
[1739676103866,1.5452,193.24,193.19,10.29267412]
[1739676104267,1.5452,193.24,193.2,10.22967412]
[1739676104868,82.1,193.23,193.2,10.22967412]
[1739676105064,82.1,193.23,193.19,0.063]
[1739676106551,87.2753,193.23,193.19,0.063]
[1739676108072,25.1759,193.2,193.19,0.063]
[1739676111773,25.1759,193.2,193.15,9.79267412]
[1739676111971,107.2759,193.2,193.15,9.79267412]
[1739676115378,107.2759,193.2,193.09,13.41184853]
[1739676115379,10.22967412,193.16,193.09,10.22967412]
[1739676115673,15.40717412,193.15,193.08,10.22967412]
[1739676115879,5.1775,193.15,193.1,10.22967412]
[1739676116077,5.1775,193.15,193.12,10.22967412]
[1739676116373,20.0,193.19,193.14,10.22967412]
[1739676116679,5.1757,193.21,193.16,10.22967412]
[1739676117061,15.40537412,193.21,193.14,10.22967412]
[1739676117677,20.0,193.18,193.12,10.22967412]
[1739676117974,20.0,193.18,193.15,0.063]
[1739676118179,10.22967412,193.19,193.15,0.063]
[1739676118487,20.0,193.18,193.15,0.063]
[1739676119356,20.0,193.17,193.15,0.063]
[1739676120051,10.22967412,193.2,193.15,0.063]
[1739676120379,5.1762,193.19,193.15,0.063]
[1739676121255,5.1762,193.19,193.15,10.29267412]
[1739676121462,15.40537412,193.21,193.15,0.063]
[1739676122255,15.40537412,193.21,193.15,10.29267412]
[1739676122256,5.1757,193.21,193.15,10.29267412]
[1739676123681,5.1757,193.21,193.16,10.22967412]
[1739676124475,82.1,193.2,193.16,10.22967412]
[1739676125778,87.276,193.2,193.16,10.22967412]
[1739676125952,87.276,193.2,193.15,10.29267412]
[1739676126152,87.276,193.2,193.16,10.22967412]
[1739676127178,87.276,193.2,193.15,0.063]
[1739676127367,82.1,193.2,193.17,10.22967412]
[1739676128075,82.1,193.2,193.19,10.22967412]
[1739676128572,82.1,193.2,193.18,10.22967412]
[1739676132564,87.276,193.2,193.18,10.22967412]
[1739676132760,82.1,193.2,193.17,10.22967412]
[1739676133977,82.1,193.2,193.18,10.22967412]
[1739676136080,82.1,193.2,193.19,10.22967412]
[1739676138887,87.2759,193.2,193.17,10.22967412]
[1739676139583,87.2759,193.2,193.18,10.22967412]
[1739676139778,82.1,193.2,193.19,10.22967412]
[1739676141579,0.03,193.21,193.19,15.40587412]
[1739676141888,0.03,193.21,193.2,51.1483706]
[1739676142279,0.03,193.21,193.2,56.3242706]
[1739676142785,0.03,193.23,193.2,64.4095706]
[1739676142977,0.03,193.23,193.22,10.22967412]
[1739676144672,0.03,193.23,193.22,15.40507412]
[1739676144986,0.03,193.23,193.22,10.22967412]
[1739676150683,0.03,193.23,193.21,10.22967412]
[1739676150887,0.03,193.23,193.2,10.22967412]
[1739676152586,82.1,193.22,193.18,10.22967412]
[1739676153470,82.1,193.22,193.19,10.22967412]
[1739676154195,5.1757,193.21,193.19,10.22967412]
[1739676154492,82.1,193.22,193.19,10.22967412]
[1739676154698,87.2755,193.22,193.19,10.22967412]
[1739676155575,87.3055,193.22,193.19,10.22967412]
[1739676156613,87.3055,193.22,193.2,10.22967412]
[1739676156779,82.13,193.22,193.2,10.22967412]
[1739676157093,82.13,193.22,193.21,10.22967412]
[1739676158772,0.03,193.22,193.21,10.22967412]
[1739676160074,0.03,193.22,193.21,15.40537412]
[1739676165503,0.03,193.22,193.21,10.22967412]
[1739676169400,0.03,193.22,193.21,15.40537412]
[1739676170308,0.03,193.22,193.21,10.22967412]
[1739676171009,0.03,193.22,193.21,15.40537412]
[1739676173511,0.03,193.22,193.21,10.22967412]
[1739676178490,87.2657977,193.28,193.21,10.22967412]
[1739676178701,82.0918977,193.27,193.25,10.22967412]
[1739676179802,87.2659977,193.27,193.25,10.22967412]
[1739676180294,82.0918977,193.27,193.25,10.22967412]
[1739676180617,87.2659977,193.27,193.25,10.22967412]
[1739676180916,87.2959977,193.27,193.25,10.22967412]
[1739676181326,82.1218977,193.27,193.25,10.22967412]
[1739676182121,82.0918977,193.26,193.25,10.22967412]
[1739676184103,87.2661977,193.26,193.25,10.22967412]
[1739676184618,82.0918977,193.26,193.25,10.22967412]
[1739676188127,87.2661977,193.26,193.25,10.22967412]
[1739676188838,87.2661977,193.26,193.24,10.22967412]
[1739676189129,87.2661977,193.26,193.23,10.22967412]
[1739676189306,87.2661977,193.26,193.24,10.22967412]
[1739676190709,82.0918977,193.26,193.25,10.22967412]
[1739676198032,82.0918977,193.26,193.24,10.29267412]
[1739676198936,87.2662977,193.26,193.24,10.29267412]
[1739676204340,87.2662977,193.26,193.24,0.063]
[1739676205243,87.2962977,193.26,193.24,0.063]
[1739676205826,82.1218977,193.26,193.25,10.22967412]
[1739676207240,87.2961977,193.26,193.24,10.29267412]
[1739676209926,82.1218977,193.26,193.24,10.29267412]
[1739676212335,87.2962977,193.26,193.24,10.29267412]
[1739676213160,82.1218977,193.26,193.24,10.29267412]
[1739676213373,82.1218977,193.26,193.25,10.22967412]
[1739676217884,0.03,193.26,193.25,10.22967412]
[1739676218037,5.2043,193.26,193.25,10.22967412]
[1739676219469,0.03,193.26,193.25,10.22967412]
[1739676220268,0.03,193.26,193.24,10.29267412]
[1739676220472,0.03,193.26,193.24,0.063]
[1739676222859,20.0,193.25,193.24,0.063]
[1739676223063,30.22967412,193.25,193.24,0.063]
[1739676224550,35.40427412,193.25,193.24,0.063]
[1739676225942,48.81612265,193.25,193.24,0.063]
[1739676230269,48.84612265,193.25,193.24,0.063]
[1739676232751,38.61644853,193.25,193.24,0.063]
[1739676234447,25.2046,193.25,193.24,0.063]
[1739676242877,35.43427412,193.25,193.24,0.063]
[1739676244389,25.2046,193.25,193.24,0.063]
[1739676247155,35.43427412,193.25,193.24,0.063]
[1739676248657,25.2046,193.25,193.24,0.063]
[1739676251584,20.0,193.22,193.21,0.063]
[1739676251894,10.22967412,193.23,193.21,0.063]
[1739676252475,30.22967412,193.22,193.21,0.063]
[1739676252685,35.40507412,193.22,193.21,0.063]
[1739676253386,48.81692265,193.22,193.21,0.063]
[1739676257268,25.1754,193.22,193.21,0.063]
[1739676260177,5.1754,193.22,193.21,0.063]
[1739676261492,12.9666,193.25,193.21,0.063]
[1739676261689,18.1412,193.25,193.21,0.063]
[1739676262576,12.9666,193.25,193.21,0.063]
[1739676263704,0.03,193.25,193.21,10.29267412]
[1739676263881,0.03,193.25,193.23,10.22967412]
[1739676264500,0.03,193.25,193.22,10.22967412]
[1739676265313,5.1751,193.23,193.22,10.22967412]
[1739676266402,87.275,193.24,193.22,10.22967412]
[1739676266599,87.275,193.24,193.23,10.22967412]
[1739676266798,87.275,193.24,193.22,10.22967412]
[1739676266995,87.275,193.24,193.21,10.29267412]
[1739676270393,87.275,193.24,193.21,0.063]
[1739676271279,82.1,193.23,193.21,0.063]
[1739676272182,5.1754,193.22,193.21,0.063]
[1739676273103,15.40507412,193.22,193.21,0.063]
[1739676274786,20.0,193.19,193.18,0.063]
[1739676275408,30.22967412,193.19,193.18,0.063]
[1739676276691,35.40587412,193.19,193.18,0.063]
[1739676279606,25.1762,193.19,193.18,0.063]
[1739676284306,5.1751,193.23,193.18,10.29267412]
[1739676284915,20.0,193.2,193.18,10.29267412]
[1739676285115,25.176,193.2,193.18,10.29267412]
[1739676285312,5.1751,193.23,193.18,10.29267412]
[1739676285527,5.1751,193.23,193.19,10.22967412]
[1739676286996,5.1751,193.23,193.18,0.063]
[1739676288106,15.40477412,193.23,193.18,0.063]
[1739676289123,5.1757,193.21,193.18,0.063]
[1739676291917,82.1,193.22,193.2,10.22967412]
[1739676292218,87.2754,193.22,193.2,10.22967412]
[1739676292812,82.1,193.22,193.21,10.22967412]
[1739676297600,0.03,193.24,193.21,15.40537412]
[1739676297802,0.03,193.24,193.23,10.22967412]
[1739676301028,0.03,193.24,193.22,10.22967412]
[1739676302312,0.03,193.24,193.23,10.22967412]
[1739676304432,0.03,193.24,193.23,15.40477412]
[1739676305133,0.03,193.24,193.23,10.22967412]
[1739676315033,0.03,193.24,193.22,10.22967412]
[1739676315715,0.03,193.24,193.23,10.22967412]
[1739676316112,0.03,193.24,193.22,10.22967412]
[1739676320043,82.1,193.23,193.21,0.063]
[1739676322023,87.2752,193.23,193.21,0.063]
[1739676322525,82.1,193.22,193.21,0.063]
[1739676322732,10.22967412,193.22,193.21,0.063]
[1739676322939,15.40487412,193.23,193.21,0.063]
[1739676324553,10.22967412,193.22,193.21,0.063]
[1739676326233,20.0,193.19,193.18,0.063]
[1739676326560,30.22967412,193.19,193.18,0.063]
[1739676328452,35.40587412,193.19,193.18,0.063]
[1739676336053,25.1762,193.19,193.18,0.063]
[1739676336261,20.0,193.19,193.18,0.063]
[1739676341554,20.0,193.19,193.18,0.063]
[1739676342278,25.176,193.2,193.18,0.063]
[1739676344340,20.0,193.19,193.18,0.063]
[1739676345474,25.1759,193.2,193.18,0.063]
[1739676345678,20.0,193.19,193.18,0.063]
[1739676345871,0.03,193.21,193.18,10.29267412]
[1739676346059,0.03,193.21,193.19,10.22967412]
[1739676346243,20.03,193.21,193.18,10.29267412]
[1739676346439,20.0,193.2,193.18,10.29267412]
[1739676346971,0.03,193.21,193.18,10.29267412]
[1739676347847,0.03,193.21,193.19,10.22967412]
[1739676348049,0.03,193.21,193.2,10.22967412]
[1739676350783,0.03,193.21,193.2,56.3242706]
[1739676352575,0.03,193.21,193.2,15.40557412]
[1739676352778,0.03,193.21,193.2,56.3242706]
[1739676355660,0.03,193.21,193.2,15.40557412]
[1739676358685,0.03,193.21,193.2,56.3242706]
[1739676360491,0.03,193.21,193.2,15.40557412]
[1739676361672,0.03,193.21,193.2,56.3242706]
[1739676362759,0.03,193.24,193.2,56.3242706]
[1739676362967,0.03,193.24,193.23,10.22967412]
[1739676363786,0.03,193.24,193.23,15.40477412]
[1739676384104,0.03,193.24,193.23,10.22967412]
[1739676384489,0.03,193.24,193.23,15.40477412]
[1739676384905,0.03,193.24,193.23,10.22967412]
[1739676385403,0.03,193.24,193.23,15.40477412]
[1739676389186,0.03,193.24,193.23,17.40477412]
[1739676389718,0.03,193.24,193.23,29.81662265]
[1739676392796,0.03,193.24,193.23,30.81662265]
[1739676393326,0.03,193.24,193.23,29.81662265]
[1739676393711,0.03,193.24,193.23,16.40477412]
[1739676394309,0.03,193.24,193.23,30.81662265]
[1739676396622,0.03,193.24,193.23,29.81662265]
[1739676397515,0.03,193.24,193.23,30.81662265]
[1739676397716,0.03,193.24,193.23,15.40477412]
[1739676402037,0.03,193.24,193.23,28.81662265]
[1739676402412,0.03,193.25,193.23,28.81662265]
[1739676402611,0.03,193.26,193.24,10.22967412]
[1739676402811,0.03,193.26,193.25,10.22967412]
[1739676403533,0.03,193.27,193.25,10.22967412]
[1739676403741,82.1,193.32,193.26,10.22967412]
[1739676403919,82.1,193.32,193.31,10.22967412]
[1739676404231,11.3825,193.38,193.31,15.40267412]
[1739676404232,82.1,193.37,193.31,15.40267412]
[1739676404417,0.03,193.33,193.32,10.22967412]
[1739676405922,0.03,193.33,193.32,23.64152265]
[1739676406133,1.5891,193.38,193.33,5.1725]
[1739676406535,1.5891,193.38,193.37,10.22967412]
[1739676407634,1.5891,193.38,193.37,15.40107412]
[1739676407819,0.03,193.39,193.37,15.40107412]
[1739676408020,0.03,193.39,193.38,10.22967412]
[1739676409528,0.03,193.39,193.38,15.40077412]
[1739676418843,0.03,193.39,193.38,10.22967412]
[1739676420450,0.03,193.39,193.38,15.40077412]
[1739676427754,0.03,193.39,193.38,69.73131913]
[1739676428430,0.03,193.39,193.38,28.81262265]
[1739676431035,0.03,193.39,193.38,69.73131913]
[1739676433538,0.03,193.41,193.39,13.41184853]
[1739676433742,0.03,193.41,193.4,51.1483706]
[1739676435940,7.7739,193.48,193.41,5.1703]
[1739676436238,89.8739,193.48,193.47,10.22967412]
[1739676440160,82.1,193.5,193.47,15.39837412]
[1739676440467,0.03,193.53,193.49,51.1483706]
[1739676440670,0.03,193.53,193.51,10.22967412]
[1739676442257,0.03,193.53,193.51,15.39727412]
[1739676443879,0.03,193.56,193.55,10.22967412]
[1739676445160,1.6077,193.62,193.55,15.39627412]
[1739676445350,1.6077,193.62,193.61,10.22967412]
[1739676445550,82.1,193.65,193.61,10.22967412]
[1739676445851,8.07445515,193.68,193.64,10.22967412]
[1739676446063,8.07445515,193.68,193.65,10.22967412]
[1739676446255,0.03,193.68,193.64,10.22967412]
[1739676446452,0.03,193.68,193.65,10.22967412]
[1739676446963,20.0,193.67,193.65,10.22967412]
[1739676449647,82.1,193.66,193.65,10.22967412]
[1739676454560,82.13,193.66,193.65,10.22967412]
[1739676454855,82.13,193.66,193.65,15.39357412]
[1739676459179,0.03,193.66,193.65,15.39357412]
[1739676461669,0.03,193.66,193.65,10.22967412]
[1739676466682,0.03,193.66,193.65,15.39357412]
[1739676473181,0.03,193.68,193.65,15.39357412]
[1739676473368,0.03,193.68,193.67,10.22967412]
[1739676474290,0.03,193.68,193.67,15.39307412]
[1739676479687,0.03,193.68,193.67,10.22967412]
[1739676483986,0.03,193.68,193.66,10.22967412]
[1739676484194,0.03,193.68,193.67,10.22967412]
[1739676487891,0.03,193.68,193.6,40.91869648]
[1739676487892,102.1,193.67,193.63,10.22967412]
[1739676488082,102.1,193.67,193.62,10.22967412]
[1739676488684,102.1,193.67,193.61,10.22967412]
[1739676489275,82.1,193.66,193.61,10.22967412]
[1739676489499,82.1,193.66,193.57,10.22967412]
[1739676489500,30.22967412,193.63,193.57,10.22967412]
[1739676489709,82.1,193.62,193.57,10.22967412]
[1739676489885,5.165,193.61,193.57,10.22967412]
[1739676490201,5.165,193.61,193.58,10.22967412]
[1739676490497,5.165,193.61,193.57,10.22967412]
[1739676492589,5.165,193.61,193.56,10.29267412]
[1739676493486,5.165,193.61,193.56,0.063]
[1739676493899,5.165,193.61,193.57,10.22967412]
[1739676497295,5.1655,193.59,193.57,10.22967412]
[1739676497484,82.1,193.58,193.57,10.22967412]
[1739676498790,87.2658,193.58,193.57,10.22967412]
[1739676502511,87.2658,193.58,193.57,10.29267412]
[1739676504286,82.1,193.58,193.57,10.29267412]
[1739676510192,87.2644,193.64,193.57,15.45867412]
[1739676510715,87.2644,193.64,193.62,10.22967412]
[1739676511315,0.03,193.68,193.66,5.1636]
[1739676512615,0.03,193.68,193.67,10.22967412]
[1739676513506,0.03,193.68,193.67,15.39307412]
[1739676516604,1.596,193.76,193.68,13.41184853]
[1739676516803,1.596,193.76,193.75,10.22967412]
[1739676521720,1.596,193.76,193.74,10.22967412]
[1739676523312,6.757,193.76,193.73,10.22967412]
[1739676524826,6.757,193.76,193.74,10.22967412]
[1739676525322,6.757,193.76,193.73,10.22967412]
[1739676526697,6.787,193.76,193.73,10.22967412]
[1739676526921,82.1,193.75,193.73,10.22967412]
[1739676527814,82.1,193.75,193.74,10.22967412]
[1739676533129,87.2612,193.75,193.73,10.22967412]
[1739676538732,82.1,193.74,193.73,10.22967412]
[1739676539532,82.1,193.74,193.72,10.22967412]
[1739676541237,97.49127412,193.74,193.68,10.29267412]
[1739676541411,82.1,193.73,193.68,10.29267412]
[1739676541821,5.162,193.72,193.68,10.29267412]
[1739676542414,5.162,193.72,193.68,0.063]
[1739676543238,82.1,193.71,193.68,0.063]
[1739676543445,82.1,193.7,193.68,0.063]
[1739676543625,82.1,193.69,193.68,0.063]
[1739676543940,87.2628,193.69,193.68,0.063]
[1739676547722,5.1628,193.69,193.68,0.063]
[1739676550224,15.39247412,193.69,193.68,0.063]
[1739676551748,0.03,193.72,193.68,0.063]
[1739676552053,0.03,193.72,193.71,10.22967412]
[1739676552240,0.03,193.72,193.7,10.22967412]
[1739676563553,0.03,193.72,193.69,10.22967412]
[1739676563736,0.03,193.72,193.68,10.29267412]
[1739676564557,5.192,193.72,193.68,10.29267412]
[1739676565758,5.192,193.72,193.68,0.063]
[1739676566753,10.22967412,193.71,193.68,0.063]
[1739676566957,10.22967412,193.69,193.68,0.063]
[1739676568953,15.39247412,193.69,193.68,0.063]
[1739676569866,28.80432265,193.69,193.68,0.063]
[1739676570235,15.39247412,193.69,193.68,0.063]
[1739676572235,5.1628,193.69,193.68,0.063]
[1739676575444,20.0,193.69,193.68,0.063]
[1739676575644,5.1623,193.71,193.68,0.063]
[1739676581246,20.0,193.7,193.68,0.063]
[1739676581446,0.03,193.72,193.68,0.063]
[1739676581447,5.192,193.72,193.68,0.063]
[1739676583364,0.03,193.72,193.68,10.29267412]
[1739676583580,0.03,193.72,193.7,10.22967412]
[1739676584485,20.0,193.7,193.68,0.063]
[1739676584673,20.0,193.7,193.69,10.22967412]
[1739676586270,0.03,193.72,193.69,10.22967412]
[1739676586469,20.0,193.7,193.69,10.22967412]
[1739676591158,25.1626,193.7,193.68,10.29267412]
[1739676593361,25.1626,193.7,193.68,0.063]
[1739676595278,87.2628,193.69,193.68,0.063]
[1739676598085,87.2928,193.69,193.68,0.063]
[1739676600972,5.1928,193.69,193.68,0.063]
[1739676601175,15.42247412,193.69,193.68,0.063]
[1739676601374,5.1928,193.69,193.68,0.063]
[1739676601971,15.42247412,193.69,193.68,0.063]
[1739676604399,20.0,193.67,193.66,0.063]
[1739676604578,30.22967412,193.67,193.66,0.063]
[1739676605071,35.39307412,193.67,193.66,0.063]
[1739676605271,25.1634,193.67,193.66,0.063]
[1739676607097,35.39307412,193.67,193.66,0.063]
[1739676608185,25.1634,193.67,193.66,0.063]
[1739676608992,48.30157412,193.67,193.58,10.22967412]
[1739676609206,20.0,193.62,193.6,10.22967412]
[1739676609408,82.1,193.61,193.6,10.22967412]
[1739676611991,87.265,193.61,193.58,10.22967412]
[1739676612193,87.265,193.61,193.57,10.29267412]
[1739676612194,82.1,193.6,193.57,10.29267412]
[1739676613687,5.1655,193.59,193.57,10.29267412]
[1739676615006,82.1,193.58,193.57,0.063]
[1739676615194,15.39517412,193.59,193.57,0.063]